fUST/lending_fUST_20251008
["ID","MTS","AMOUNT","RATE_DAILY","PERIOD"]
[389956645,1759909839319,-313.57071859,0.00021369,2]
[389956647,1759909839329,-500.0,0.00021369,2]
[389956649,1759909839338,-501.34124379,0.00021369,2]
[389956651,1759909839347,-500.0,0.00021369,2]
[389956653,1759909839357,-348.06178688,0.00021369,2]
[389956655,1759909839367,-500.0,0.00021369,2]
[389956657,1759909839377,-500.0,0.00021369,2]
[389956659,1759909839387,-500.0,0.00021369,2]
[389956662,1759909839396,-500.0,0.00021369,2]
[389956663,1759909839405,-500.0,0.00021369,2]
[389956665,1759909839414,-500.0,0.00021369,2]
[389956667,1759909839423,-500.0,0.00021369,2]
[389956670,1759909839433,-500.0,0.00021369,2]
[389956671,1759909839443,-500.0,0.00021369,2]
[389956674,1759909839453,-520.0,0.00021369,3]
[389956675,1759909839463,-502.62851123,0.00021369,2]
[389956677,1759909839472,-500.0,0.00021369,2]
[389956679,1759909839482,-500.0,0.00021369,2]
[389956681,1759909839491,-500.0,0.00021369,2]
[389956683,1759909839500,-500.0,0.00021369,2]
[389956685,1759909839510,-500.0,0.00021369,2]
[389956687,1759909839519,-500.0,0.00021369,2]
[389956689,1759909839528,-500.0,0.00021369,2]
[389956691,1759909839539,-502.71838591,0.00021369,2]
[389956693,1759909839549,-500.0,0.00021369,2]
[389956695,1759909839558,-489.36205432,0.00021369,2]
[389956697,1759909839568,-500.0,0.00021369,2]
[389956699,1759909839578,-503.44490376,0.00021369,2]
[389956701,1759909839588,-500.0,0.00021369,2]
[389956703,1759909839598,-500.0,0.00021369,2]
[389956705,1759909839607,-500.0,0.00021369,2]
[389956707,1759909839617,-501.59578527,0.00021369,2]
[389956709,1759909839626,-500.43535754,0.00021369,2]
[389956711,1759909839636,-500.72186928,0.00021369,2]
[389956713,1759909839645,-151.0,0.00021369,7]
[389956715,1759909839655,-500.0,0.00021369,2]
[389956717,1759909839664,-500.0,0.00021369,2]
[389956719,1759909839674,-500.0,0.00021369,2]
[389956721,1759909839684,-500.0,0.00021369,2]
[389956723,1759909839693,-500.0,0.00021369,2]
[389956725,1759909839703,-500.0,0.00021369,2]
[389956727,1759909839712,-502.02653637,0.00021369,2]
[389956729,1759909839721,-500.0,0.00021369,2]
[389956731,1759909839730,-500.0,0.00021369,2]
[389956733,1759909839740,-151.0,0.00021369,7]
[389956735,1759909839750,-151.0,0.00021369,7]
[389956737,1759909839759,-205.717978,0.00021369,7]
[389956739,1759909839768,-636.39,0.00021369,2]
[389956741,1759909839778,-500.0,0.00021369,2]
[389956743,1759909839788,-474.12077266,0.00021369,2]
[389956745,1759909839797,-500.0,0.00021369,2]
[389956747,1759909839806,-500.0,0.00021369,2]
[389956749,1759909839816,-500.0,0.00021369,2]
[389956751,1759909839826,-483.3648366,0.00021369,2]
[389956753,1759909839837,-500.33806792,0.00021369,2]
[389956755,1759909839847,-501.38241877,0.00021369,2]
[389956757,1759909839856,-500.0,0.00021369,2]
[389956759,1759909839865,-907.57,0.00021369,2]
[389956761,1759909839875,-500.0,0.00021369,2]
[389956763,1759909839885,-153.338829,0.00021369,7]
[389956765,1759909839895,-500.0,0.00021369,2]
[389956767,1759909839904,-501.487528,0.00021369,2]
[389956769,1759909839914,-500.0,0.00021369,2]
[389956771,1759909839924,-500.0,0.00021369,2]
[389956773,1759909839934,-499.28650598,0.00021369,2]
[389956775,1759909839943,-500.0,0.00021369,2]
[389956777,1759909839953,-500.0,0.00021369,2]
[389956779,1759909839962,-485.21827319,0.00021369,2]
[389956781,1759909839972,-286.74293775,0.00021369,2]
[389956783,1759909839982,-1280.95,0.00021369,2]
[389956785,1759909839992,-660.75,0.00021369,2]
[389956787,1759909840002,-501.49941541,0.00021369,2]
[389956789,1759909840011,-380.66649571,0.00021369,2]
[389956792,1759909840020,-500.0,0.00021369,2]
[389956793,1759909840031,-151.0,0.00021369,7]
[389956796,1759909840042,-500.0,0.00021369,2]
[389956797,1759909840051,-151.0,0.00021369,7]
[389956799,1759909840060,-151.0,0.00021369,7]
[389956800,1759909840069,-151.0,0.00021369,7]
[389956801,1759909840078,-595.78,0.00021369,2]
[389956802,1759909840087,-703.41,0.00021369,2]
[389956803,1759909840096,-500.0,0.00021369,2]
[389956804,1759909840105,-687.9,0.00021369,2]
[389956805,1759909840114,-968.76,0.00021369,2]
[389956806,1759909840123,-512.96,0.00021369,2]
[389956807,1759909840132,-1027.8,0.00021369,2]
[389956808,1759909840141,-1512.88,0.00021369,2]
[389956809,1759909840150,-500.0,0.00021369,2]
[389956810,1759909840158,-2328.05,0.00021369,2]
[389956811,1759909840168,-1559.72,0.00021369,2]
[389956812,1759909840178,-540.04,0.00021369,2]
[389956813,1759909840187,-500.0,0.00021369,2]
[389956814,1759909840196,-500.0,0.00021369,2]
[389956815,1759909840205,-500.0,0.00021369,2]
[389956816,1759909840214,-931.15,0.00021369,2]
[389956817,1759909840223,-694.21,0.00021369,2]
[389956818,1759909840232,-185.29,0.00021369,2]
[389956819,1759909840241,-484.40877184,0.00021369,2]
[389956821,1759909840250,-151.0,0.00021369,7]
[389956823,1759909840259,-914.4,0.00021369,2]
[389956825,1759909840269,-151.86541,0.00021369,7]
[389956827,1759909840278,-632.41,0.00021369,2]
[389956829,1759909840287,-691.41,0.00021369,2]
[389956831,1759909840296,-270.02160035,0.00021369,2]
[389956833,1759909840305,-1453.02,0.00021369,2]
[389956835,1759909840314,-768.13,0.00021369,2]
[389956837,1759909840323,-1081.99,0.00021369,2]
[389956858,1759909840333,-500.0,0.00021369,2]
[389956864,1759909840544,-1806.65,0.00021369,2]
[389956866,1759909840554,-500.0,0.00021369,2]
[389956868,1759909840563,-216.568282,0.00021369,7]
[389956870,1759909840572,-216.568282,0.00021369,7]
[389956872,1759909840581,-216.568282,0.00021369,7]
[389956874,1759909840590,-216.568282,0.00021369,7]
[389956876,1759909840599,-216.568282,0.00021369,7]
[389956878,1759909840608,-216.568282,0.00021369,7]
[389956880,1759909840616,-216.568282,0.00021369,7]
[389956882,1759909840625,-216.568282,0.00021369,7]
[389956884,1759909840634,-216.568282,0.00021369,7]
[389956886,1759909840643,-216.568282,0.00021369,7]
[389956888,1759909840652,-1646.66,0.00021369,2]
[389956890,1759909840661,-216.568282,0.00021369,7]
[389956892,1759909840671,-216.568282,0.00021369,7]
[389956894,1759909840680,-216.568282,0.00021369,7]
[389956896,1759909840689,-216.568282,0.00021369,7]
[389956898,1759909840698,-216.568282,0.00021369,7]
[389956900,1759909840707,-216.568282,0.00021369,7]
[389956902,1759909840716,-1373.02,0.00021369,2]
[389956904,1759909840725,-500.0,0.00021369,2]
[389956906,1759909840734,-216.568282,0.00021369,7]
[389956907,1759909840743,-216.568282,0.00021369,7]
[389956909,1759909840752,-216.568282,0.00021369,7]
[389956911,1759909840761,-500.0,0.00021369,2]
[389956913,1759909840770,-500.0,0.00021369,2]
[389956915,1759909840779,-216.568274,0.00021369,7]
[389956917,1759909840788,-151.0,0.00021369,7]
[389956919,1759909840798,-151.0,0.00021369,7]
[389956921,1759909840807,-596.43,0.00021369,2]
[389956923,1759909840816,-1506.62,0.00021369,2]
[389956925,1759909840826,-500.0,0.00021369,2]
[389956927,1759909840837,-500.0,0.00021369,2]
[389956929,1759909840850,-500.0,0.00021369,2]
[389956931,1759909840860,-1299.66,0.00021369,2]
[389956933,1759909840870,-500.0,0.00021369,2]
[389956935,1759909840882,-605.03987459,0.00021369,2]
[389956937,1759909840892,-500.0,0.00021369,2]
[389956940,1759909840902,-500.0,0.00021369,2]
[389956941,1759909840911,-486.66243912,0.00021369,2]
[389956943,1759909840920,-500.0,0.00021369,2]
[389956945,1759909840930,-500.0,0.00021369,2]
[389956947,1759909840939,-500.0,0.00021369,2]
[389956949,1759909840948,-500.0,0.00021369,2]
[389956951,1759909840957,-500.0,0.00021369,2]
[389956954,1759909840968,-500.0,0.00021369,2]
[389956955,1759909840977,-500.0,0.00021369,2]
[389956957,1759909840989,-500.0,0.00021369,2]
[389956960,1759909840998,-1252.39,0.00021369,2]
[389956961,1759909841008,-500.0,0.00021369,2]
[389956964,1759909841017,-500.0,0.00021369,2]
[389956966,1759909841029,-2177.35,0.00021369,2]
[389956967,1759909841038,-763.42,0.00021369,2]
[389956969,1759909841047,-500.0,0.00021369,2]
[389956971,1759909841058,-500.0,0.00021369,2]
[389956973,1759909841067,-500.0,0.00021369,2]
[389956976,1759909841077,-566.38,0.00021369,2]
[389956977,1759909841087,-791.82,0.00021369,2]
[389956979,1759909841096,-500.0,0.00021369,2]
[389956981,1759909841106,-1248.13,0.00021369,2]
[389956983,1759909841116,-500.0,0.00021369,2]
[389956985,1759909841125,-500.0,0.00021369,2]
[389956987,1759909841134,-500.0,0.00021369,2]
[389956989,1759909841143,-500.0,0.00021369,2]
[389956991,1759909841152,-1000.0,0.00021369,2]
[389956993,1759909841162,-500.0,0.00021369,2]
[389956995,1759909841171,-500.0,0.00021369,2]
[389956997,1759909841182,-151.0,0.00021369,7]
[389957000,1759909841192,-500.0,0.00021369,2]
[389957002,1759909841201,-500.0,0.00021369,2]
[389957003,1759909841211,-500.0,0.00021369,2]
[389957006,1759909841221,-932.43,0.00021369,2]
[389957008,1759909841231,-500.0,0.00021369,2]
[389957009,1759909841240,-6229.14,0.00021369,2]
[389957011,1759909841250,-517.32184556,0.00021369,2]
[389957013,1759909841261,-500.0,0.00021369,2]
[389957015,1759909841271,-504.98734939,0.00021369,2]
[389957018,1759909841280,-500.0,0.00021369,2]
[389957020,1759909841290,-3686.0,0.00021369,2]
[389957022,1759909841299,-500.0,0.00021369,2]
[389957024,1759909841309,-500.0,0.00021369,2]
[389957025,1759909841319,-705.12,0.00021369,2]
[389957027,1759909841329,-1112.03,0.00021369,2]
[389957030,1759909841338,-500.0,0.00021369,2]
[389957032,1759909841347,-1655.71,0.00021369,2]
[389957034,1759909841357,-864.82,0.00021369,2]
[389957036,1759909841366,-500.0,0.00021369,2]
[389957038,1759909841377,-500.0,0.00021369,2]
[389957040,1759909841386,-500.0,0.00021369,2]
[389957042,1759909841396,-2784.53,0.00021369,2]
[389957044,1759909841405,-628.51,0.00021369,2]
[389957045,1759909841414,-553.67,0.00021369,2]
[389957047,1759909841423,-500.0,0.00021369,2]
[389957049,1759909841432,-151.0,0.00021369,7]
[389957051,1759909841441,-2154.51,0.00021369,2]
[389957053,1759909841451,-151.0,0.00021369,7]
[389957055,1759909841460,-500.0,0.00021369,2]
[389957057,1759909841468,-151.0,0.00021369,7]
[389957059,1759909841478,-279.973015,0.00021369,7]
[389957061,1759909841487,-500.0,0.00021369,2]
[389957063,1759909841496,-1509.04,0.00021369,2]
[389957065,1759909841506,-2880.48,0.00021369,2]
[389957067,1759909841515,-1509.04,0.00021369,2]
[389957069,1759909841524,-1509.04,0.00021369,2]
[389957071,1759909841533,-1509.04,0.00021369,2]
[389957073,1759909841542,-1509.04,0.00021369,2]
[389957075,1759909841551,-1509.04,0.00021369,2]
[389957077,1759909841561,-1509.04,0.00021369,2]
[389957079,1759909841570,-1193.32,0.00021369,2]
[389957081,1759909841580,-1509.04,0.00021369,2]
[389957083,1759909841589,-1509.04,0.00021369,2]
[389957085,1759909841598,-1509.04,0.00021369,2]
[389957087,1759909841607,-1509.04,0.00021369,2]
[389957089,1759909841616,-1509.04,0.00021369,2]
[389957091,1759909841625,-1509.04,0.00021369,2]
[389957093,1759909841634,-1509.04,0.00021369,2]
[389957095,1759909841643,-1509.04,0.00021369,2]
[389957097,1759909841652,-1509.04,0.00021369,2]
[389957099,1759909841661,-1509.04,0.00021369,2]
[389957101,1759909841671,-1509.04,0.00021369,2]
[389957103,1759909841680,-1509.04,0.00021369,2]
[389957105,1759909841689,-500.0,0.00021369,2]
[389957107,1759909841698,-1509.04,0.00021369,2]
[389957109,1759909841707,-1509.04,0.00021369,2]
[389957111,1759909841716,-1509.04,0.00021369,2]
[389957113,1759909841725,-1509.04,0.00021369,2]
[389957115,1759909841734,-151.0,0.00021369,7]
[389957117,1759909841743,-1509.2412304,0.00021369,2]
[389957119,1759909841752,-151.0,0.00021369,7]
[389957121,1759909841762,-500.0,0.00021369,2]
[389957123,1759909841772,-151.0,0.00021369,7]
[389957125,1759909841781,-151.0,0.00021369,7]
[389957127,1759909841790,-151.0,0.00021369,7]
[389957129,1759909841799,-152.642974,0.00021369,7]
[389957131,1759909841808,-151.0,0.00021369,7]
[389957133,1759909841817,-151.0,0.00021369,7]
[389957135,1759909841826,-151.0,0.00021369,7]
[389957137,1759909841836,-715.76,0.00021369,2]
[389957139,1759909841850,-159.201531,0.00021369,7]
[389957141,1759909841859,-507.45699498,0.00021369,2]
[389957143,1759909841868,-500.0,0.00021369,2]
[389957145,1759909841879,-151.0,0.00021369,7]
[389957147,1759909841888,-151.58779,0.00021369,7]
[389957150,1759909841897,-637.68,0.00021369,2]
[389957151,1759909841906,-554.32,0.00021369,2]
[389957154,1759909841917,-890.71,0.00021369,2]
[389957156,1759909841925,-500.0,0.00021369,2]
[389957157,1759909841935,-152.814924,0.00021369,7]
[389957159,1759909841944,-467.12520212,0.00021369,2]
[389957162,1759909841953,-151.0,0.00021369,7]
[389957163,1759909841963,-500.0,0.00021369,2]
[389957165,1759909841972,-160.730606,0.00021369,7]
[389957167,1759909841981,-500.0,0.00021369,2]
[389957169,1759909841990,-500.0,0.00021369,2]
[389957171,1759909841999,-500.0,0.00021369,2]
[389957173,1759909842008,-500.0,0.00021369,2]
[389957175,1759909842017,-634.54,0.00021369,2]
[389957177,1759909842027,-500.0,0.00021369,2]
[389957179,1759909842036,-500.0,0.00021369,2]
[389957181,1759909842045,-1088.11,0.00021369,2]
[389957183,1759909842054,-1743.28,0.00021369,2]
[389957185,1759909842064,-1057.52,0.00021369,2]
[389957187,1759909842073,-500.0,0.00021369,2]
[389957189,1759909842082,-500.0,0.00021369,2]
[389957191,1759909842091,-500.0,0.00021369,2]
[389957193,1759909842100,-500.0,0.00021369,2]
[389957195,1759909842109,-500.0,0.00021369,2]
[389957197,1759909842118,-500.0,0.00021369,2]
[389957199,1759909842127,-500.0,0.00021369,2]
[389957201,1759909842137,-502.25990697,0.00021369,2]
[389957203,1759909842146,-502.89986826,0.00021369,2]
[389957205,1759909842155,-500.0,0.00021369,2]
[389957207,1759909842164,-151.907832,0.00021369,7]
[389957209,1759909842173,-2101.75,0.00021369,2]
[389957211,1759909842182,-500.0,0.00021369,2]
[389957213,1759909842192,-500.0,0.00021369,2]
[389957215,1759909842200,-1024.8,0.00021369,2]
[389957217,1759909842209,-500.0,0.00021369,2]
[389957219,1759909842218,-500.0,0.00021369,2]
[389957221,1759909842228,-500.0,0.00021369,2]
[389957223,1759909842237,-571.66,0.00021369,2]
[389957225,1759909842246,-715.9,0.00021369,2]
[389957227,1759909842255,-1238.97,0.00021369,2]
[389957229,1759909842264,-510.67,0.00021369,2]
[389957231,1759909842273,-500.0,0.00021369,2]
[389957233,1759909842283,-871.6,0.00021369,2]
[389957235,1759909842292,-500.0,0.00021369,2]
[389957237,1759909842301,-151.0,0.00021369,7]
[389957239,1759909842311,-151.0,0.00021369,7]
[389957241,1759909842320,-607.56,0.00021369,2]
[389957243,1759909842330,-607.56,0.00021369,2]
[389957245,1759909842339,-2282.0,0.00021369,2]
[389957247,1759909842349,-607.56,0.00021369,2]
[389957249,1759909842358,-607.56,0.00021369,2]
[389957251,1759909842367,-607.56,0.00021369,2]
[389957253,1759909842377,-607.56,0.00021369,2]
[389957255,1759909842386,-607.56,0.00021369,2]
[389957258,1759909842396,-607.56,0.00021369,2]
[389957260,1759909842406,-607.56,0.00021369,2]
[389957262,1759909842415,-607.56,0.00021369,2]
[389957264,1759909842424,-607.56,0.00021369,2]
[389957265,1759909842434,-607.56,0.00021369,2]
[389957267,1759909842443,-500.0,0.00021369,2]
[389957270,1759909842452,-500.0,0.00021369,2]
[389957272,1759909842462,-837.79,0.00021369,2]
[389957274,1759909842471,-607.56,0.00021369,2]
[389957275,1759909842480,-607.56,0.00021369,2]
[389957277,1759909842489,-607.56,0.00021369,2]
[389957279,1759909842498,-607.56,0.00021369,2]
[389957281,1759909842507,-607.56,0.00021369,2]
[389957283,1759909842516,-607.56,0.00021369,2]
[389957285,1759909842525,-607.56,0.00021369,2]
[389957287,1759909842534,-607.56,0.00021369,2]
[389957289,1759909842543,-607.56,0.00021369,2]
[389957291,1759909842552,-607.56,0.00021369,2]
[389957293,1759909842562,-607.56,0.00021369,2]
[389957296,1759909842571,-607.73897305,0.00021369,2]
[389957298,1759909842581,-1145.13,0.00021369,2]
[389957300,1759909842589,-151.0,0.00021369,7]
[389957302,1759909842598,-1023.47,0.00021369,2]
[389957303,1759909842607,-500.0,0.00021369,2]
[389957305,1759909842617,-881.63,0.00021369,2]
[389957307,1759909842626,-500.0,0.00021369,2]
[389957310,1759909842636,-500.0,0.00021369,2]
[389957311,1759909842645,-500.0,0.00021369,2]
[389957314,1759909842654,-500.0,0.00021369,2]
[389957316,1759909842663,-2548.97,0.00021369,2]
[389957317,1759909842673,-1263.89,0.00021369,2]
[389957319,1759909842682,-636.69,0.00021369,2]
[389957322,1759909842692,-402.0838479,0.00021369,7]
[389957324,1759909842701,-500.0,0.00021369,2]
[389957326,1759909842709,-500.0,0.00021369,2]
[389957328,1759909842719,-151.939706,0.00021369,7]
[389957329,1759909842728,-500.0,0.00021369,2]
[389957332,1759909842737,-500.0,0.00021369,2]
[389957333,1759909842746,-183.135255,0.00021369,7]
[389957335,1759909842755,-183.135255,0.00021369,7]
[389957338,1759909842764,-183.135255,0.00021369,7]
[389957339,1759909842774,-183.135255,0.00021369,7]
[389957341,1759909842783,-183.135255,0.00021369,7]
[389957343,1759909842793,-183.135255,0.00021369,7]
[389957346,1759909842803,-183.135255,0.00021369,7]
[389957348,1759909842812,-183.135255,0.00021369,7]
[389957350,1759909842822,-183.135255,0.00021369,7]
[389957351,1759909842831,-183.135255,0.00021369,7]
[389957353,1759909842850,-183.135255,0.00021369,7]
[389957356,1759909842867,-183.135255,0.00021369,7]
[389957358,1759909842876,-500.0,0.00021369,2]
[389957360,1759909842886,-183.135255,0.00021369,7]
[389957362,1759909842895,-500.0,0.00021369,2]
[389957364,1759909842904,-183.135255,0.00021369,7]
[389957366,1759909842913,-183.135255,0.00021369,7]
[389957368,1759909842923,-183.135255,0.00021369,7]
[389957370,1759909842932,-500.0,0.00021369,2]
[389957372,1759909842941,-183.135255,0.00021369,7]
[389957374,1759909842951,-183.135255,0.00021369,7]
[389957376,1759909842960,-183.135255,0.00021369,7]
[389957377,1759909842970,-183.135251,0.00021369,7]
[389957380,1759909842979,-500.0,0.00021369,2]
[389957384,1759909842989,-211.68002786,0.00021369,2]
[389957387,1759909842999,-2236.62,0.00021369,2]
[389957389,1759909843008,-500.0,0.00021369,2]
[389957392,1759909843017,-500.0,0.00021369,2]
[389957394,1759909843026,-569.2,0.00021369,2]
[389957396,1759909843036,-941.3,0.00021369,2]
[389957399,1759909843046,-2433.05,0.00021369,2]
[389957401,1759909843056,-839.55,0.00021369,2]
[389957402,1759909843065,-248.391291,0.00021369,7]
[389957405,1759909843074,-151.445284,0.00021369,7]
[389957406,1759909843084,-151.379047,0.00021369,7]
[389957408,1759909843094,-900.28,0.00021369,2]
[389957411,1759909843103,-900.28,0.00021369,2]
[389957413,1759909843112,-900.28,0.00021369,2]
[389957414,1759909843121,-500.0,0.00021369,2]
[389957417,1759909843131,-151.0,0.00021369,7]
[389957418,1759909843139,-151.0,0.00021369,7]
[389957421,1759909843149,-500.0,0.00021369,2]
[389957423,1759909843158,-151.0,0.00021369,7]
[389957425,1759909843167,-900.28,0.00021369,2]
[389957427,1759909843177,-900.28,0.00021369,2]
[389957429,1759909843186,-152.149213,0.00021369,7]
[389957430,1759909843195,-900.28,0.00021369,2]
[389957432,1759909843204,-900.28,0.00021369,2]
[389957434,1759909843213,-900.28,0.00021369,2]
[389957437,1759909843222,-900.28,0.00021369,2]
[389957439,1759909843232,-900.28,0.00021369,2]
[389957441,1759909843241,-900.28,0.00021369,2]
[389957443,1759909843250,-900.28,0.00021369,2]
[389957445,1759909843259,-900.28,0.00021369,2]
[389957447,1759909843268,-900.28,0.00021369,2]
[389957448,1759909843277,-900.28,0.00021369,2]
[389957450,1759909843286,-900.28,0.00021369,2]
[389957452,1759909843298,-900.28,0.00021369,2]
[389957454,1759909843307,-900.28,0.00021369,2]
[389957457,1759909843316,-151.0,0.00021369,7]
[389957459,1759909843325,-900.28,0.00021369,2]
[389957461,1759909843334,-151.0,0.00021369,7]
[389957462,1759909843344,-900.28,0.00021369,2]
[389957465,1759909843353,-151.0,0.00021369,7]
[389957467,1759909843362,-900.28,0.00021369,2]
[389957468,1759909843371,-151.0,0.00021369,7]
[389957471,1759909843380,-900.28,0.00021369,2]
[389957473,1759909843389,-546.06,0.00021369,2]
[389957474,1759909843399,-900.28,0.00021369,2]
[389957476,1759909843408,-151.0,0.00021369,7]
[389957479,1759909843418,-502.00537925,0.00021369,2]
[389957481,1759909843427,-900.34636747,0.00021369,2]
[389957482,1759909843436,-151.0,0.00021369,7]
[389957484,1759909843446,-151.0,0.00021369,7]
[389957486,1759909843455,-500.0,0.00021369,2]
[389957489,1759909843464,-500.0,0.00021369,2]
[389957490,1759909843474,-500.0,0.00021369,2]
[389957493,1759909843483,-500.0,0.00021369,2]
[389957495,1759909843493,-500.0,0.00021369,2]
[389957496,1759909843502,-500.0,0.00021369,2]
[389957498,1759909843511,-500.0,0.00021369,2]
[389957500,1759909843520,-505.10079148,0.00021369,2]
[389957503,1759909843529,-500.0,0.00021369,2]
[389957504,1759909843539,-500.0,0.00021369,2]
[389957506,1759909843549,-1930.67,0.00021369,2]
[389957508,1759909843557,-155.205038,0.00021369,7]
[389957511,1759909843566,-500.0,0.00021369,2]
[389957512,1759909843576,-626.26,0.00021369,2]
[389957513,1759909843585,-152.59198,0.00021369,7]
[389957514,1759909843593,-716.08,0.00021369,2]
[389957515,1759909843603,-1916.23,0.00021369,2]
[389957516,1759909843612,-151.0,0.00021369,7]
[389957517,1759909843621,-1055.16,0.00021369,2]
[389957518,1759909843629,-500.0,0.00021369,2]
[389957519,1759909843638,-151.0,0.00021369,7]
[389957520,1759909843647,-151.0,0.00021369,7]
[389957521,1759909843657,-151.0,0.00021369,7]
[389957522,1759909843668,-500.0,0.00021369,2]
[389957523,1759909843677,-151.0,0.00021369,7]
[389957524,1759909843688,-151.0,0.00021369,7]
[389957525,1759909843697,-500.0,0.00021369,2]
[389957526,1759909843707,-500.0,0.00021369,2]
[389957527,1759909843716,-500.0,0.00021369,2]
[389957528,1759909843725,-151.0,0.00021369,7]
[389957530,1759909843734,-722.03,0.00021369,2]
[389957532,1759909843742,-153.477985,0.00021369,7]
[389957534,1759909843751,-501.10107604,0.00021369,2]
[389957536,1759909843760,-487.29771583,0.00021369,2]
[389957538,1759909843769,-480.51684085,0.00021369,2]
[389957540,1759909843778,-6237.73,0.00021369,2]
[389957542,1759909843788,-687.33,0.00021369,2]
[389957544,1759909843796,-500.0,0.00021369,2]
[389957546,1759909843806,-866.75,0.00021369,2]
[389957548,1759909843815,-500.0,0.00021369,2]
[389957550,1759909843824,-500.0,0.00021369,2]
[389957552,1759909843833,-476.71024608,0.00021369,2]
[389957554,1759909843846,-500.0,0.00021369,2]
[389957556,1759909843855,-1558.54,0.00021369,2]
[389957558,1759909843863,-500.0,0.00021369,2]
[389957560,1759909843872,-500.0,0.00021369,2]
[389957562,1759909843881,-625.27,0.00021369,2]
[389957564,1759909843891,-500.0,0.00021369,2]
[389957566,1759909843900,-2618.69,0.00021369,2]
[389957568,1759909843910,-500.0,0.00021369,2]
[389957570,1759909843920,-500.0,0.00021369,2]
[389957572,1759909843929,-151.0,0.00021369,7]
[389957574,1759909843937,-151.0,0.00021369,7]
[389957576,1759909843946,-151.0,0.00021369,7]
[389957578,1759909843955,-151.0,0.00021369,7]
[389957580,1759909843964,-151.0,0.00021369,7]
[389957582,1759909843973,-151.0,0.00021369,7]
[389957584,1759909843982,-151.0,0.00021369,7]
[389957586,1759909843991,-500.0,0.00021369,2]
[389957588,1759909844000,-151.0,0.00021369,7]
[389957590,1759909844009,-151.0,0.00021369,7]
[389957592,1759909844019,-151.0,0.00021369,7]
[389957594,1759909844027,-1000.0,0.00021369,2]
[389957596,1759909844036,-1000.0,0.00021369,2]
[389957598,1759909844045,-921.22,0.00021369,2]
[389957600,1759909844054,-1000.0,0.00021369,2]
[389957602,1759909844063,-1000.0,0.00021369,2]
[389957604,1759909844073,-1000.0,0.00021369,2]
[389957606,1759909844082,-500.0,0.00021369,2]
[389957608,1759909844091,-1015.706381,0.00021369,2]
[389957610,1759909844100,-151.0,0.00021369,7]
[389957612,1759909844110,-556.61,0.00021369,2]
[389957614,1759909844118,-151.0,0.00021369,7]
[389957616,1759909844127,-151.0,0.00021369,7]
[389957618,1759909844136,-500.0,0.00021369,2]
[389957620,1759909844145,-151.0,0.00021369,7]
[389957622,1759909844154,-151.0,0.00021369,7]
[389957624,1759909844163,-151.0,0.00021369,7]
[389957626,1759909844172,-500.0,0.00021369,2]
[389957628,1759909844181,-151.692163,0.00021369,7]
[389957630,1759909844190,-151.0,0.00021369,7]
[389957632,1759909844199,-1350.32,0.00021369,2]
[389957634,1759909844208,-500.0,0.00021369,2]